Cogmind - Beta 13 @@@ ROGUE MODE // 2024.03.26 @ 09:27:40 Player: deadnoob Result: Destroyed by D-53 Grenadier with Mini Grenade Launcher Performance ------------- Evolutions (0) 0 Regions Visited (4) 800 Robots Destroyed (34) 170 Value Destroyed (532) 532 Prototype IDs (28) 560 Alien Tech Used (0) 0 Bonus (300) 300 TOTAL SCORE: 2362 Bonus ------- Aligned with FarCom 300 Cogmind --------- Core Integrity 0/250 Matter 171/300 Energy 170/170 System Corruption 0% Temperature Cool (0) Movement Treading (240) Ox1 Location -9/Mines Parts ------- > --- POWER (1) -------- Light Neutrino Core > --- PROPULSION (2) --- Light Treads Advanced Myomer Leg > --- UTILITY (2) ------ Medium Storage Unit Experimental Targeting Computer > --- WEAPON (2) ------- 8R-AWN's Boregun Makeshift Spear > --- INVENTORY (10) --- Light Treads Huge Storage Unit Experimental Core Analyzer System Purifier Light Assault Rifle Light Assault Rifle Grenade Launcher Rocket Launcher Peak State ------------ > --- POWER ------------ Light Neutrino Core > --- PROPULSION ------- Light Treads Advanced Myomer Leg > --- UTILITY ---------- Medium Storage Unit Experimental Targeting Computer > --- WEAPON ----------- 8R-AWN's Boregun Makeshift Spear > --- INVENTORY -------- Light Treads Experimental Core Analyzer System Purifier Grenade Launcher Rocket Launcher [Rating: 39] Favorites ----------- Power Ion Engine Engine Ion Engine Power Core Light Neutrino Core Propulsion Aluminum Leg Treads Light Treads Leg Aluminum Leg Utility Medium Storage Unit Device Seismic Detector Storage Medium Storage Unit Processor Targeting Computer Weapon Assault Rifle Ballistic Gun Assault Rifle Launcher Grenade Launcher Slashing Weapon Longsword +1 Piercing Weapon Makeshift Spear Build | -11 -10 -10 -10 -9 ------- Run | Yrd Mat Min Exi Min Slots Evolved . | . . . . . Power . | . . . . . Propulsion . | . . . . . Utility . | . . . . . Weapon . | . . . . . Parts Attached 31 | 1 10 2 16 2 Power 2 | . . . 2 . Engine 1 | . . . 1 . Core 1 | . . . 1 . Reactor . | . . . . . Propulsion 3 | . . . 3 . Treads 2 | . . . 2 . Leg 1 | . . . 1 . Wheel . | . . . . . Hover . | . . . . . Flight . | . . . . . Utility 5 | 1 2 . 2 . Device 2 | 1 . . 1 . Storage 1 | . 1 . . . Processor 2 | . 1 . 1 . Hackware . | . . . . . Protection . | . . . . . Artifact . | . . . . . Weapon 21 | . 8 2 9 2 Energy Gun . | . . . . . Energy Cannon . | . . . . . Ballistic Gun 9 | . 4 1 3 1 Ballistic Cannon . | . . . . . Launcher 9 | . 4 1 3 1 Special Weapon . | . . . . . Impact Weapon . | . . . . . Slashing Weapon 2 | . . . 2 . Piercing Weapon 1 | . . . 1 . Special Melee Weapon . | . . . . . Unidentified Prototypes 5 | . . . 5 . Parts Lost 9 | . 1 . 8 . Power 2 | . . . 2 . Propulsion 2 | . . . 2 . Utility 2 | . 1 . 1 . Weapon 3 | . . . 3 . Highest Loss Streak 7 | . 1 . 7 . To Critical Strikes 5 | . . . 5 . Average Slot Usage (%) 95 | . 100 100 90 100 Engine 9 | . 14 14 7 . Core 2 | . . . 3 14 Treads 8 | . . . 13 14 Leg 19 | . 28 28 14 14 Device 3 | . 12 . . . Storage 14 | . 14 14 14 14 Processor 7 | . 1 14 7 14 Ballistic Gun 20 | . 27 27 15 11 Slashing Weapon 3 | . . . 7 . Piercing Weapon 3 | . . . 3 14 Naked Turns . | . . . . . Heaviest Build 26 | 15 21 19 26 26 Greatest Support 40 | 20 20 20 40 30 Greatest Overweight (x) 1 | . 1 . 1 . Average Overweight (x) . | . . . . . Largest Inventory Capacity 10 | 8 10 10 10 10 Average Capacity 9 | 8 9 10 10 10 Most Carried 10 | 5 10 10 10 8 Average Carried 7 | 4 8 10 5 8 Final Capacity 10 | 8 10 10 10 10 Final Carried 10 | 4 10 10 8 8 Class Distribution -------------------- 100% | Mutant Dominant Class ---------------- Mutant | -10/Materials Mutant | -10/Mines Mutant | -10/Exiles Mutant | -9/Mines Resources | -11 -10 -10 -10 -9 ----------- Run | Yrd Mat Min Exi Min Matter Collected 1031 | 252 236 36 491 16 Remotely . | . . . . . Salvage Created 903 | 123 444 9 327 . Parts 95 | 6 28 2 59 . Haulers Intercepted 1 | . 1 . . . Recyclers Shooed 1 | 1 . . . . Parts Field Recycled . | . . . . . Retrieved Matter . | . . . . . Parts Self-Destructed . | . . . . . Prevented . | . . . . . Kills | -11 -10 -10 -10 -9 ------- Run | Yrd Mat Min Exi Min Combat Hostiles Destroyed 27 | . 14 3 8 2 Melee 1 | . . . 1 . Guns 4 | . 4 . . . AOE 22 | . 10 3 7 2 Classes Destroyed 10 | 2 5 . 3 . Worker 2 | . 2 . . . Tunneler 3 | 2 1 . . . Hauler 1 | . 1 . . . Recycler 2 | 1 1 . . . Turret 1 | . . . 1 . Watcher 1 | . 1 . . . Swarmer 9 | . 6 3 . . Grunt 8 | . 8 . . . Zionite 4 | . . . 4 . Assembled 9 | . . . 7 2 Best Kill Streak 7 | 2 6 3 7 2 Combat Bots Only 7 | . 3 3 7 2 Max Kills in Single Turn 4 | 1 3 1 4 2 Gunslinging . | . . . . . Exploded 4 | . 2 1 4 2 Melee 1 | . . . 1 . Uniques/NPCs Destroyed 4 | . . . 4 . EX-DEC (-10/Exiles) EX-HEX (-10/Exiles) EX-BIN (-10/Exiles) 8R-AWN (-10/Exiles) Combat | -11 -10 -10 -10 -9 -------- Run | Yrd Mat Min Exi Min Hostile Shots Fired 83 | . 27 3 51 2 Missed 21 | . 10 3 8 . Damage Taken 1187 | . 256 69 805 57 Core 286 | . 77 . 165 44 Absorbed by Shields . | . . . . . Core Remaining (%) 100 | 100 . . . . Volleys Fired 102 | 7 25 3 65 2 Largest 2 | 2 2 1 2 1 Hottest 63 | 40 40 30 63 30 Shots Fired 125 | 14 39 3 67 2 Gun 105 | 14 28 . 62 1 Cannon . | . . . . . Launcher 20 | . 11 3 5 1 Special . | . . . . . Kinetic 105 | 14 28 . 62 1 Thermal . | . . . . . Explosive 20 | . 11 3 5 1 Electromagnetic . | . . . . . Robot Hit Streak 7 | 3 7 . 5 . Robot Miss Streak 5 | 2 5 . 4 1 Penetration Max . | . . . . . Secondary Targets . | . . . . . Shots Hit Robots 96 | 7 20 . 69 . Core Hits 76 | 4 29 5 36 2 Critical Kills 3 | . . . 3 . Critical Parts Destroyed 7 | . 1 . 6 . Critical Strikes 12 | . 1 . 11 . Destroy 10 | . 1 . 9 . Sever 2 | . . . 2 . Melee Attacks 38 | . . . 38 . Impact . | . . . . . Slashing 31 | . . . 31 . Piercing 7 | . . . 7 . Sneak Attacks . | . . . . . Combat Hostiles . | . . . . . Follow-up Attacks . | . . . . . Damage Inflicted 3823 | 88 1046 189 2442 58 Guns 725 | 88 204 . 433 . Cannons . | . . . . . Explosions 1502 | . 826 185 433 58 Melee 1576 | . . . 1576 . Ramming 20 | . 16 4 . . Kinetic 725 | 88 204 . 433 . Thermal . | . . . . . Explosive 1502 | . 826 185 433 58 Electromagnetic . | . . . . . Impact . | . . . . . Slashing 1399 | . . . 1399 . Piercing 177 | . . . 177 . Highest Corruption . | . . . . . Average Corruption . | . . . . . Corruption Purged . | . . . . . Corruption Blocked . | . . . . . Overload Shots . | . . . . . Overflow Damage 48 | . 10 . 38 . Projectiles . | . . . . . Explosions 10 | . 10 . . . Melee 38 | . . . 38 . Knockbacks . | . . . . . Impact . | . . . . . Kinetic . | . . . . . Secondary . | . . . . . Self-Inflicted Damage 203 | . 84 70 49 . Shots 7 | . 3 3 1 . Rammed . | . . . . . Targets Rammed 3 | . 2 1 . . Kicked 3 | . 2 1 . . Crushed . | . . . . . Highest Temperature 6 | 6 4 . 6 . Average Temperature 3 | 6 2 . 3 . Received Heat Transfer 66 | . 66 . . . Siege Activations . | . . . . . Robots Corrupted . | . . . . . Combat Hostiles . | . . . . . Parts Fried . | . . . . . Impact Corruptions . | . . . . . Robots Melted . | . . . . . Combat Hostiles . | . . . . . Parts Melted . | . . . . . Heat Transferred . | . . . . . Parts Sabotaged . | . . . . . Parts Stolen . | . . . . . Parts Stripped . | . . . . . Power Chain Reactions . | . . . . . Alert | -11 -10 -10 -10 -9 ------- Run | Yrd Mat Min Exi Min Peak Influence 397 | 15 397 219 . 99 Initial 94 | . 9 94 . . Average 135 | 8 207 91 . 28 Maximum Alert Level 1 | . 1 1 . . Low Security (%) 63 | 100 36 80 . 100 Level 1 36 | . 63 19 . . Level 2 . | . . . . . Level 3 . | . . . . . Level 4 . | . . . . . Level 5 . | . . . . . High Security . | . . . . . Max Security . | . . . . . Squads Dispatched 4 | . 4 . . . Investigation 1 | . 1 . . . Extermination . | . . . . . Reinforcement 3 | . 3 . . . Assault . | . . . . . Garrison . | . . . . . Intercept . | . . . . . Searches Triggered . | . . . . . Construction Impeded . | . . . . . Haulers Reinforced . | . . . . . Active Scanning Responses . | . . . . . Cargo Convoy Interrupts . | . . . . . Stealth | -11 -10 -10 -10 -9 --------- Run | Yrd Mat Min Exi Min Distress Signals 2 | . 2 . . . Communications Jammed . | . . . . . Distress Signals . | . . . . . Times Spotted 60 | . 19 3 34 4 Peak Tracking Total 11 | . 4 3 11 2 Tactical Retreats 15 | . 1 . 14 . Traps | -11 -10 -10 -10 -9 ------- Run | Yrd Mat Min Exi Min Traps Triggered . | . . . . . Indirectly . | . . . . . Trap Hack Attempts . | . . . . . Triggered . | . . . . . Disarmed . | . . . . . Reprogrammed . | . . . . . Reused . | . . . . . Traps Extracted . | . . . . . Installed . | . . . . . Triggered . | . . . . . Machines | -11 -10 -10 -10 -9 ---------- Run | Yrd Mat Min Exi Min Machines Disabled 21 | . 3 3 15 . Max in Single Turn 3 | . 2 2 3 . Machines Repaired . | . . . . . Machines Dismantled . | . . . . . Machines Sabotaged . | . . . . . Overloaded Fab Kills . | . . . . . Hacking | -11 -10 -10 -10 -9 --------- Run | Yrd Mat Min Exi Min Machines Accessed 6 | . 4 . 2 . Terminals 3 | . 3 . . . Fabricators . | . . . . . Repair Stations . | . . . . . Recycling Units 1 | . 1 . . . Scanalyzers . | . . . . . Garrison Access . | . . . . . Total Hacks 13 | . 11 . 2 . Successful 8 | . 6 . 2 . Failed 5 | . 5 . . . Catastrophic 1 | . 1 . . . Database Lockouts . | . . . . . Manual 11 | . 10 . 1 . Terminals 9 | . 9 . . . Fabricators . | . . . . . Repair Stations . | . . . . . Recycling Units 2 | . 2 . . . Scanalyzers . | . . . . . Garrison Access . | . . . . . Terminal Hacks 5 | . 3 . 2 . Record 1 | . . . 1 . Robot Analysis 2 | . 2 . . . Recall Reinforcements 1 | . 1 . . . Derelict Proto ID Bank 1 | . . . 1 . Fabricator Hacks . | . . . . . Repair Station Hacks . | . . . . . Recycling Unit Hacks . | . . . . . Scanalyzer . | . . . . . Garrison Access Hacks . | . . . . . Unauthorized Hacks 3 | . 3 . . . Terminals 2 | . 2 . . . Track 1 | . 1 . . . Operators 1 | . 1 . . . Fabricators . | . . . . . Repair Stations . | . . . . . Recycling Units 1 | . 1 . . . Tunnel 1 | . 1 . . . Scanalyzers . | . . . . . Garrison Access . | . . . . . Data Cores Recovered . | . . . . . Used . | . . . . . Hacking Detections 4 | . 4 . . . Full Trace Events . | . . . . . Feedback Events . | . . . . . Feedback Blocked . | . . . . . Robot Schematics Acquired . | . . . . . Robots Built . | . . . . . Authchips . | . . . . . Time . | . . . . . Total Robot Build Rating . | . . . . . Part Schematics Acquired . | . . . . . Parts Built . | . . . . . Authchips . | . . . . . Time . | . . . . . Total Part Build Rating . | . . . . . Parts Repaired . | . . . . . Time . | . . . . . Parts Recycled . | . . . . . Recycled Matter . | . . . . . Retrieved Matter . | . . . . . Retrieved Components . | . . . . . Parts Scanalyzed . | . . . . . Part Schematics Acquired . | . . . . . Parts Damaged . | . . . . . Bothacking | -11 -10 -10 -10 -9 ------------ Run | Yrd Mat Min Exi Min Used RIF Installer . | . . . . . Robots Hacked . | . . . . . Non-combat . | . . . . . Combat . | . . . . . Robot Hacks Applied . | . . . . . Relay Couplers Released . | . . . . . Fabnet Peak Effective % . | . . . . . Robots Rewired . | . . . . . Allies Hacked . | . . . . . Hacks Repelled . | . . . . . Allies | -11 -10 -10 -10 -9 -------- Run | Yrd Mat Min Exi Min Total Allies 3 | . . . . 3 Largest Group 3 | . . . . 3 Highest-Rated Group 40 | . . . . 40 Highest-Rated Ally 16 | . . . . 16 Total Orders 1 | . . . . 1 ROAM 1 | . . . . 1 Ally Attacks 14 | . . . . 14 Total Damage 154 | . . . . 154 Kills 4 | . . . . 4 Allies Corrupted . | . . . . . Allies Melted . | . . . . . Intel | -11 -10 -10 -10 -9 ------- Run | Yrd Mat Min Exi Min Robot Analysis Total 2 | . 2 . . . Derelict Logs Recovered 2 | . . 1 . 1 Drone Launches . | . . . . . Drone Recoveries . | . . . . . Exploration | -11 -10 -10 -10 -9 ------------- Run | Yrd Mat Min Exi Min Turns Passed 4019 | 66 993 618 1998 344 Spaces Moved 2618 | 21 600 505 1258 234 Core . | . . . . . Treads 504 | . . . 504 . Legs 2114 | 21 600 505 754 234 Wheels . | . . . . . Hover . | . . . . . Flight . | . . . . . Fastest Speed 120 | 120 120 120 120 120 Average Speed 128 | 120 120 120 136 120 Slowest Speed 190 | 120 190 120 190 120 Overloaded Moves . | . . . . . Propulsion Burnouts . | . . . . . Robots Hopped . | . . . . . Cave-ins Triggered . | . . . . . Exploration Rate (%) 57 | 4 50 93 89 51 Regions Visited 4 Branch Regions 3 Pre-discovered Areas 2 | . 1 . 1 . Known Exits Taken . | . . . . . Unknown Exits Taken 4 | 1 1 1 1 . Scrap Searched 2 | . . 1 . 1 Spaces Dug 20 | . 20 . . . Terrain Destroyed 126 | . 70 11 39 6 Melee . | . . . . . Projectile 16 | . . . 15 1 AOE 109 | . 70 11 23 5 Terrain Rammed . | . . . . . Walls Destroyed . | . . . . . Machines Disabled . | . . . . . Actions | -11 -10 -10 -10 -9 --------- Run | Yrd Mat Min Exi Min Total 3122 | 48 831 516 1433 294 Wait 291 | 18 180 2 35 56 Move 2614 | 20 599 504 1257 234 Hop . | . . . . . Pick Up 22 | . 11 2 9 . Fast Attach 7 | 1 . . 6 . Attach 7 | . 1 . 6 . Detach 4 | . . . 4 . Swap 17 | . 9 2 4 2 Drop 17 | 2 4 2 9 . Fire 102 | 7 25 3 65 2 Melee 38 | . . . 38 . Ram . | . . . . . Kick 3 | . 2 1 . . Crush . | . . . . . Escape Stasis . | . . . . . Rewire . | . . . . . Trap . | . . . . . Miscellaneous . | . . . . . Route ------- -11/Scrapyard -10/Materials (discovered 2 exits: [*Mat] / [*Min]) -10/Mines (discovered 3 exits: [*Mat] / *Exi / [*Sub]) -10/Exiles -9/Mines History --------- Turn | Location | Event 15 | -11/Scrapyard | Discovered new exit (range 2) 67 | -11/Scrapyard | Entered Materials 122 | -10/Materials | Discovered new exit (range 11) 318 | -10/Materials | Build established: Mutant 791 | -10/Materials | Discovered new exit (range 4) 1060 | -10/Materials | Entered Mines 1061 | -10/Mines | Met a Derelict bent on vengeance 1084 | -10/Mines | Learned 2 Materials zone layouts 1113 | -10/Mines | Deemed a non-threat by the Exiles lab entrance 1113 | -10/Mines | Discovered new exit (range 5) 1142 | -10/Mines | Received a Rocket Launcher from a helpful Derelict 1463 | -10/Mines | Discovered new exit (range 8) 1551 | -10/Mines | Discovered new exit (range 9) 1678 | -10/Mines | Entered Exiles 1707 | -10/Exiles | Met 8R-AWN 1728 | -10/Exiles | Met EX-HEX 1776 | -10/Exiles | Met EX-DEC 1780 | -10/Exiles | Learned location of Zion (-6) 1896 | -10/Exiles | Met EX-BIN 1909 | -10/Exiles | Aligned with FarCom system 1910 | -10/Exiles | Given EX-Vault access code 1939 | -10/Exiles | Opened EX-Vault 1949 | -10/Exiles | Found Longsword +1 1973 | -10/Exiles | Warned to stay clear of 0b10 Research branches 2050 | -10/Exiles | Discovered new exit (range 10) 2180 | -10/Exiles | Found Deploy-a-Sentry 2182 | -10/Exiles | Found Deploy-a-Sentry 2184 | -10/Exiles | Found Deploy-a-Sentry 2398 | -10/Exiles | Found YOLO Cannon 2537 | -10/Exiles | Attacked by the Exiles 2586 | -10/Exiles | Destroyed 7 combat bots 2646 | -10/Exiles | Core integrity fell below 50% 2685 | -10/Exiles | Core integrity fell below 20% 2700 | -10/Exiles | Found Prototype Ballistic Gun 2700 | -10/Exiles | Identified 8R-AWN's Boregun 2704 | -10/Exiles | Lost 7 parts (1p2n1u3w) 3089 | -10/Exiles | Destroyed EX-DEC 3110 | -10/Exiles | Destroyed EX-HEX 3148 | -10/Exiles | Destroyed EX-BIN 3190 | -10/Exiles | Found Prototype Processor 3211 | -10/Exiles | Found Prototype Device 3211 | -10/Exiles | Identified System Purifier 3531 | -10/Exiles | Destroyed 8R-AWN 3543 | -10/Exiles | Found Prototype Processor 3543 | -10/Exiles | Identified Exp. Targeting Computer 3676 | -10/Exiles | Entered Mines 3725 | -9/Mines | Assisted by bots powering up and referring to "LRC-V3" 3908 | -9/Mines | Assembled infested the area 4020 | -9/Mines | Destroyed by D-53 Grenadier with Mini Grenade Launcher Last Messages --------------- 03725_ Mercenary 2a: "Hello LRC-V3. What is your command?" 03725_ Trooper 2b: "Hello LRC-V3. What is your command?" 03736_ T-07 Excavator is excavating. 03830_ Acquired derelict log, extracted data. Data stored: Factory entrances (x1). 03846_ Searching scrap... 03846_ Found Lrg. Battery. 03846_ Found Lrg. Storage Unit. 03846_ Found EMP Blaster. 03846_ Found 16 Matter. 03847_ Acquired 16 matter. 03892_ A derelict is hurriedly installing traps. 03894_ FG-I4X(g): "Hehe, this'll put a wrench in their mining defense operations..." 03894_ FG-I4X(g) slips into the shadows. 03908_ ALERT: Infestation in the mines, dispatching Demolisher response squad. 03967_ as-87644 destroyed. 03967_ as-35597 destroyed. 04018_ HV Slug penetrates Wall. Map ----- +----------------------------------------------------+ | ?????????????????????## #???????????????? | | ?????????????????????# ## #???????????????? | | ?????????????????????# #### ##???????????????? | | ?????????????????????## !#??####????????????????? | | ??????????????????????## ##?????????????????????? | | ???????????????????????# ###???????????????????? | | ?????????????????????#### ####????????????????? | | ???????????????????### " ##???????????????? | | ?????????????????### #???????????????? | | ????????????????## #" #???????????????? | | ??????????????### ################# | | ??????????????# " # | | ?????????????? % %% # " ##### ######## # | | ????????????????# ###### #??????# # | | ????????????????# #??##### # | | ??????????????????# " #??# """ | | ????????????????????## ########??# """ | | ?????????????????????#"" ##?????????# """ | | ?????????????????????## #??????????# | | ??????????????????????# #####??????????# | | ??????????????????????## ##??????????????# | | ???????????????????????# #???????????????######## | | ??????????????????????## ##??????????????????????? | | ??????????????????????#dd#???????????????????????? | | ??????????????????????# ##??????????????????????? | | ??????????????????????# @##?????????????????????? | | ??????????????????????## ##????????????????????? | | ???????????????????????# ##???????????????????? | | ??????????????????????## ####????????????????? | | ?????????????????????## ########?????????? | | ?????????????????????# #?????????? | | ?????????????????????# #????????? | | ?????????????????????## #????????? | | ??????????????????????### ## ##????????? | | ????????????????????????################?????????? | | ?????????????????????????????????????????????????? | | ?????????????????????????????????????????????????? | | | | | | | | | | | | | | | | | | | | | | | | | | | +----------------------------------------------------+ Best States ------------- Heat Dissipation 25 Energy Generation 19 Energy Capacity 250 Matter Stores 300 Matter Capacity 300 Sight Range 16 Terrain Scan Density 10 Evasion (%) 55 Targeting Accuracy 12 Recoil Reduction 2 Item Schematics ----------------- None Robot Schematics ------------------ None Fabricated ------------ Nothing Alien Tech Used ----------------- None Achievements -------------- None Challenges ------------ None Game ------ Seed BeamAssaultTorch Manual? 0 Play Time 00:22:24 Cumulative 271.8 hours Start 2024.03.26 @ 09:06:29 End 2024.03.26 @ 09:27:40 Sessions 1 Manual Loads 0 Difficulty Rogue Special Mode None Game No. 350 Rogue 350 Adventurer 0 Explorer 0 Win Type - Total 9 Types 8/0/0/1/0/0/0/0/0 Lore% 83 Gallery% 89 Achievement% 71 Wizard Run 0 Options --------- Layout 0 ASCII 0 Keyboard 1 Movement Numpad Keybinds 0 Fullscreen 2 Font 18/SmallcapsGlow Map View 76x50 Zoom Use 0% Tactical HUD 1 Map Filters NONE Filters NONE Steam 1 RUN: aa6688be-4b35-402d-8c44-3dd2f76173ac